bitfinex-derivatives/quotes_BTCF0:USTF0_20250329
["timestamp","ask_amount","ask_price","bid_price","bid_amount"]
[1743238323846,0.54415221,83868.0,83867.0,0.03554763]
[1743238326055,0.55258627,83868.0,83867.0,0.03554763]
[1743238326253,0.55258627,83868.0,83867.0,0.03354763]
[1743238326453,0.55558627,83868.0,83867.0,0.03154763]
[1743238328451,0.55558627,83868.0,83867.0,0.03214763]
[1743238328647,0.55558627,83868.0,83867.0,0.03154763]
[1743238329253,0.55558627,83868.0,83867.0,0.03214763]
[1743238329448,0.55558627,83868.0,83867.0,0.03154763]
[1743238329848,0.55558627,83868.0,83867.0,0.03222763]
[1743238330048,0.55558627,83868.0,83867.0,0.06154763]
[1743238330276,0.55558627,83868.0,83867.0,0.06222763]
[1743238330455,0.55558627,83868.0,83867.0,0.06154763]
[1743238330857,0.55558627,83868.0,83867.0,0.18144123]
[1743238331049,0.55558627,83868.0,83867.0,0.06214763]
[1743238331250,0.67002627,83868.0,83867.0,0.06154763]
[1743238331455,0.66159221,83868.0,83867.0,0.06154763]
[1743238332054,0.66159221,83868.0,83867.0,0.18084123]
[1743238332246,0.66159221,83868.0,83867.0,0.18144123]
[1743238333361,0.63009221,83868.0,83867.0,0.18144123]
[1743238333563,0.63009221,83868.0,83867.0,0.06214763]
[1743238334062,0.26929221,83868.0,83867.0,0.06214763]
[1743238334763,0.26929221,83868.0,83867.0,0.18144123]
[1743238340066,0.37646592,83868.0,83867.0,0.18144123]
[1743238340264,0.37646592,83868.0,83867.0,0.06214763]
[1743238340462,0.37646592,83868.0,83867.0,0.06154763]
[1743238340655,0.37646592,83868.0,83867.0,0.06250763]
[1743238341256,0.37646592,83868.0,83867.0,0.18180123]
[1743238344160,0.15485221,83868.0,83867.0,0.18180123]
[1743238344367,0.12325221,83868.0,83867.0,0.18180123]
[1743238363483,0.15435221,83868.0,83867.0,0.18180123]
[1743238364382,0.16266858,83868.0,83867.0,0.18180123]
[1743238374283,0.15435221,83868.0,83867.0,0.18180123]
[1743238376376,0.29709464,83868.0,83867.0,0.18180123]
[1743238378391,0.29709464,83868.0,83867.0,0.06250763]
[1743238379195,0.29709464,83868.0,83867.0,0.18180123]
[1743238381399,0.26599464,83868.0,83867.0,0.18180123]
[1743238383590,0.12325221,83868.0,83867.0,0.06250763]
[1743238384187,0.15405221,83868.0,83867.0,0.06250763]
[1743238385692,0.15405221,83868.0,83867.0,0.18180123]
[1743238388097,0.29679464,83868.0,83867.0,0.18180123]
[1743238389801,0.29679464,83868.0,83867.0,0.06250763]
[1743238391698,0.29679464,83868.0,83867.0,0.18180123]
[1743238392495,0.14670244,83868.0,83867.0,0.18180123]
[1743238392699,0.14670244,83868.0,83867.0,0.43180123]
[1743238392903,0.14670244,83868.0,83867.0,0.47966296]
[1743238393203,0.14574243,83868.0,83867.0,0.49148783]
[1743238393394,0.14670244,83868.0,83867.0,1.99148783]
[1743238393593,0.14574243,83868.0,83867.0,1.99148783]
[1743238395402,0.003,83868.0,83867.0,2.68217207]
[1743238396989,0.003,83868.0,83867.0,1.18217207]
[1743238399206,0.003,83868.0,83867.0,0.85228783]
[1743238399800,0.003,83868.0,83867.0,0.89188624]
[1743238401612,0.003,83868.0,83867.0,0.84402451]
[1743238401913,0.003,83868.0,83867.0,0.8044261]
[1743238404710,0.003,83868.0,83867.0,0.4436261]
[1743238404911,0.003,83868.0,83867.0,0.8044261]
[1743238406227,0.10735104,83880.0,83879.0,0.1192765]
[1743238406411,0.10831105,83880.0,83879.0,0.3998765]
[1743238406813,0.00017879,83883.0,83882.0,0.1192723]
[1743238407022,0.00017879,83883.0,83882.0,0.38916812]
[1743238407625,0.00017879,83883.0,83882.0,0.45136812]
[1743238407816,0.00017879,83883.0,83882.0,0.4121123]
[1743238409110,0.00117879,83883.0,83882.0,0.42423945]
[1743238419326,0.00117879,83883.0,83882.0,0.46345549]
[1743238425535,0.00117879,83883.0,83882.0,0.57785549]
[1743238430647,0.68241293,83903.0,83902.0,0.1192438]
[1743238431030,0.68345294,83903.0,83902.0,0.1192438]
[1743238431728,0.54071051,83903.0,83902.0,0.1192438]
[1743238432251,0.60033461,83903.0,83902.0,0.1192438]
[1743238432430,0.60033461,83903.0,83902.0,0.1202438]
[1743238432941,0.60133461,83903.0,83902.0,0.1202438]
[1743238433941,0.66353461,83903.0,83902.0,0.1202438]
[1743238434334,0.6752313,83903.0,83902.0,0.1202438]
[1743238435030,0.66353461,83903.0,83902.0,0.1202438]
[1743238435234,0.48466391,83903.0,83902.0,0.1202438]
[1743238435436,0.42504001,83903.0,83902.0,0.1321869]
[1743238435837,0.54428241,83903.0,83902.0,0.1959869]
[1743238436034,0.42504001,83903.0,83902.0,0.1959869]
[1743238436240,0.06424001,83903.0,83902.0,0.4359869]
[1743238436439,0.0632,83903.0,83902.0,0.4359869]
[1743238436636,0.06416001,83903.0,83902.0,0.4359869]
[1743238437949,0.06416001,83903.0,83902.0,0.47600429]
[1743238439238,0.0632,83903.0,83902.0,0.47600429]
[1743238440044,0.0632,83903.0,83902.0,0.4359869]
[1743238440742,0.0632,83903.0,83902.0,0.47585352]
[1743238441138,0.0632,83903.0,83902.0,0.4359869]
[1743238443252,0.11941089,83911.0,83910.0,0.1192325]
[1743238443445,0.11941089,83911.0,83910.0,0.1198725]
[1743238443446,0.15031089,83911.0,83910.0,0.1198725]
[1743238443659,0.15131089,83911.0,83910.0,0.1198725]
[1743238444442,0.18401089,83911.0,83910.0,0.1519725]
[1743238445948,0.18501089,83911.0,83910.0,0.1519725]
[1743238451046,0.18501089,83911.0,83910.0,0.1838725]
[1743238460656,0.18501089,83911.0,83910.0,0.00064]
[1743238460843,0.1192396,83905.0,83904.0,0.0646]
[1743238461048,0.12019961,83905.0,83904.0,0.184441]
[1743238461759,0.18419961,83905.0,83904.0,0.184441]
[1743238463060,0.18519961,83905.0,83904.0,0.184441]
[1743238463747,0.196934,83905.0,83904.0,0.184441]
[1743238464660,0.18519961,83905.0,83904.0,0.184441]
[1743238466156,0.19738981,83905.0,83904.0,0.184441]
[1743238476859,0.19738981,83905.0,83904.0,0.0652]
[1743238477060,0.19738981,83905.0,83904.0,0.0646]
[1743238478268,0.19738981,83905.0,83904.0,0.183841]
[1743238478570,0.15279961,83905.0,83904.0,0.184481]
[1743238478764,0.12119961,83905.0,83904.0,0.184481]
[1743238494599,0.12119961,83905.0,83904.0,0.39796064]
[1743238496598,0.15369961,83905.0,83904.0,0.39796064]
[1743238496796,0.18569961,83905.0,83904.0,0.39796064]
[1743238498810,0.18569961,83905.0,83904.0,0.27871964]
[1743238499102,0.32853314,83905.0,83904.0,0.06524]
[1743238499287,0.29653314,83905.0,83904.0,0.06524]
[1743238499692,0.29653314,83905.0,83904.0,0.184481]
[1743238502607,0.15369961,83905.0,83904.0,0.184481]
[1743238504208,0.00196001,83905.0,83904.0,0.184481]
[1743238504403,0.00196001,83905.0,83904.0,0.454481]
[1743238504805,0.00075057,83905.0,83904.0,0.815281]
[1743238505006,0.00139057,83905.0,83904.0,0.815281]
[1743238506812,0.00139057,83905.0,83904.0,0.82717897]
[1743238507212,0.00139057,83905.0,83904.0,0.87500917]
[1743238507399,0.00075057,83905.0,83904.0,0.87500917]
[1743238508016,0.00075057,83905.0,83904.0,2.37500917]
[1743238509112,0.14283353,83910.0,83909.0,0.1192339]
[1743238509305,0.14283353,83910.0,83909.0,0.45696209]
[1743238509914,0.14283353,83910.0,83909.0,0.91216209]
[1743238510705,0.14283353,83910.0,83909.0,0.86433189]
[1743238511210,0.14283353,83910.0,83909.0,0.8251139]
[1743238511410,0.14283353,83910.0,83909.0,2.3251139]
[1743238512512,0.00017879,83911.0,83910.0,0.1192325]
[1743238512705,0.00017879,83911.0,83910.0,0.4340325]
[1743238517414,0.00017879,83911.0,83910.0,0.4727842]
[1743238517619,0.00017879,83911.0,83910.0,1.9727842]
[1743238517817,9e-08,83911.0,83910.0,1.9727842]
[1743238518317,9e-08,83911.0,83910.0,1.98175494]
[1743238518816,9e-08,83911.0,83910.0,2.39095494]
[1743238523910,9e-08,83911.0,83910.0,2.73331415]
[1743238526218,9e-08,83911.0,83910.0,2.84759415]
[1743238527113,9e-08,83911.0,83910.0,2.79987171]
[1743238527321,9e-08,83911.0,83910.0,3.01035885]
[1743238530416,9e-08,83911.0,83910.0,3.05802948]
[1743238531612,9e-08,83911.0,83910.0,3.20802948]
[1743238531813,0.0329,83939.0,83938.0,0.1191927]
[1743238532022,0.03354,83939.0,83938.0,0.3691927]
[1743238532326,0.03354,83939.0,83938.0,0.3698327]
[1743238532515,0.03354,83939.0,83938.0,1.8698327]
[1743238532718,0.0329,83939.0,83938.0,1.8698327]
[1743238533026,0.0329,83939.0,83938.0,1.9333327]
[1743238533216,0.0329,83939.0,83938.0,1.94520135]
[1743238534328,0.1520913,83939.0,83938.0,1.94520135]
[1743238534527,0.1520913,83939.0,83938.0,1.95424764]
[1743238536135,0.0329,83939.0,83938.0,1.95424764]
[1743238536918,0.0329,83939.0,83938.0,0.45424764]
[1743238537318,0.1520913,83939.0,83938.0,0.45424764]
[1743238537922,0.1520913,83939.0,83938.0,0.81504764]
[1743238538336,0.1520913,83939.0,83938.0,0.45424764]
[1743238538526,0.1520913,83939.0,83938.0,0.81504764]
[1743238538721,0.1520913,83939.0,83938.0,0.45424764]
[1743238538925,0.1520913,83939.0,83938.0,0.81504764]
[1743238539821,0.0329,83939.0,83938.0,0.81504764]
[1743238540130,0.1520913,83939.0,83938.0,0.81504764]
[1743238542430,0.1520913,83939.0,83938.0,0.45424764]
[1743238542633,0.1520913,83939.0,83938.0,0.81504764]
[1743238542929,0.1520913,83939.0,83938.0,0.45424764]
[1743238543233,0.1520913,83939.0,83938.0,0.81504764]
[1743238544431,0.1520913,83939.0,83938.0,0.4806327]
[1743238544918,0.1527313,83939.0,83938.0,0.4806327]
[1743238545432,0.16384419,83939.0,83938.0,0.4806327]
[1743238545631,0.1520913,83939.0,83938.0,0.4806327]
[1743238547824,0.1520913,83939.0,83938.0,0.5435327]
[1743238551837,0.1520913,83939.0,83938.0,0.1827327]
[1743238552029,0.0329,83939.0,83938.0,0.1827327]
[1743238552832,0.1520913,83939.0,83938.0,0.1827327]
[1743238554639,0.1527313,83939.0,83938.0,0.1827327]
[1743238556128,0.1198313,83939.0,83938.0,0.1827327]
[1743238556534,0.1191913,83939.0,83938.0,0.1827327]
[1743238556838,0.1198313,83939.0,83938.0,0.1827327]
[1743238561144,0.1191913,83939.0,83938.0,0.2144327]
[1743238561337,0.1198313,83939.0,83938.0,0.2144327]
[1743238562245,0.1510313,83939.0,83938.0,0.2144327]
[1743238563037,0.1198313,83939.0,83938.0,0.2144327]
[1743238563237,0.00064,83939.0,83938.0,0.2144327]
[1743238563436,0.02379,83942.0,83941.0,0.1191884]
[1743238563642,0.02443,83942.0,83941.0,0.1198284]
[1743238563846,0.143617,83942.0,83941.0,0.1198284]
[1743238564235,0.143617,83942.0,83941.0,0.1819284]
[1743238564637,0.02443,83942.0,83941.0,0.1819284]
[1743238565238,0.143617,83942.0,83941.0,0.1819284]
[1743238568736,0.174017,83942.0,83941.0,0.1819284]
[1743238569345,0.206317,83942.0,83941.0,0.1819284]
[1743238571048,0.175917,83942.0,83941.0,0.1819284]
[1743238571248,0.143617,83942.0,83941.0,0.1819284]
[1743238576248,0.143617,83942.0,83941.0,0.06274]
[1743238576450,0.534517,83942.0,83941.0,0.06274]
[1743238576649,0.597417,83942.0,83941.0,0.00064]
[1743238580348,0.597417,83942.0,83941.0,0.1198284]
[1743238580957,0.597417,83942.0,83941.0,0.1833284]
[1743238581358,0.566717,83942.0,83941.0,0.2139284]
[1743238581558,0.38523,83942.0,83941.0,0.2139284]
[1743238581759,0.02443,83942.0,83941.0,0.2139284]
[1743238581959,0.02379,83942.0,83941.0,1.7139284]
[1743238582162,0.02379,83942.0,83941.0,0.2139284]
[1743238582357,0.02451,83942.0,83941.0,0.2139284]
[1743238582557,0.02379,83942.0,83941.0,0.2139284]
[1743238582961,0.142977,83942.0,83941.0,0.2139284]
[1743238583881,0.143657,83942.0,83941.0,0.2139284]
[1743238584385,0.142977,83942.0,83941.0,0.2139284]
[1743238585973,0.02379,83942.0,83941.0,0.2139284]
[1743238586376,0.02443,83942.0,83941.0,0.2139284]
[1743238587077,0.02379,83942.0,83941.0,0.2139284]
[1743238590686,0.02379,83942.0,83941.0,0.49796621]
[1743238599192,0.02379,83942.0,83941.0,0.2139284]
[1743238611491,0.05539,83942.0,83941.0,0.2139284]
[1743238613398,0.02379,83942.0,83941.0,0.2139284]
[1743238615894,0.02379,83942.0,83941.0,0.4839284]
[1743238616101,0.02379,83942.0,83941.0,0.53174488]
[1743238617902,0.02379,83942.0,83941.0,0.72954488]
[1743238618103,0.02379,83942.0,83941.0,0.53174488]
[1743238619506,0.02379,83942.0,83941.0,0.87233324]
[1743238619706,0.02379,83942.0,83941.0,1.23313324]
[1743238620396,0.02379,83942.0,83941.0,0.87233324]
[1743238620597,0.02379,83942.0,83941.0,1.23313324]
[1743238621897,0.02379,83942.0,83941.0,1.27215936]
[1743238622100,0.02379,83942.0,83941.0,0.91135936]
[1743238622297,0.02379,83942.0,83941.0,1.23313324]
[1743238622801,0.02379,83942.0,83941.0,1.27215855]
[1743238623005,0.02379,83942.0,83941.0,1.23313324]
[1743238624906,0.05509,83942.0,83941.0,1.23313324]
[1743238625802,0.174277,83942.0,83941.0,1.23313324]
[1743238626007,0.174277,83942.0,83941.0,1.20253324]
[1743238626205,0.174277,83942.0,83941.0,0.81334484]
[1743238626394,0.174917,83942.0,83941.0,0.90163324]
[1743238626599,0.174917,83942.0,83941.0,0.85381676]
[1743238628106,0.174917,83942.0,83941.0,0.49301676]
[1743238628611,0.174917,83942.0,83941.0,0.50859457]
[1743238631818,0.238917,83942.0,83941.0,0.50859457]
[1743238632705,0.238917,83942.0,83941.0,0.1524284]
[1743238633506,0.206317,83942.0,83941.0,0.1524284]
[1743238633820,0.206317,83942.0,83941.0,0.16419372]
[1743238637416,0.143617,83942.0,83941.0,0.16419372]
[1743238638111,0.02443,83942.0,83941.0,0.43419372]
[1743238638310,0.02379,83942.0,83941.0,0.43419372]
[1743238638818,0.02379,83942.0,83941.0,0.47304792]
[1743238639019,0.02451,83942.0,83941.0,0.47304792]
[1743238639331,0.02451,83942.0,83941.0,0.83384792]
[1743238640113,0.02379,83942.0,83941.0,0.79499372]
[1743238644412,0.02379,83942.0,83941.0,2.29499372]
[1743238647624,0.02379,83942.0,83941.0,0.79499372]
[1743238649219,0.02379,83942.0,83941.0,0.43419372]
[1743238649522,0.02379,83942.0,83941.0,0.79499372]
[1743238649924,0.02379,83942.0,83941.0,0.52499372]
[1743238650315,0.15465888,83942.0,83941.0,0.00064]
[1743238650513,0.15529888,83942.0,83941.0,0.00064]
[1743238650730,0.21819888,83942.0,83941.0,0.00064]
[1743238657528,0.1191955,83936.0,83935.0,0.1521967]
[1743238657724,0.1198355,83936.0,83935.0,0.1527967]
[1743238657922,0.4806355,83936.0,83935.0,0.1527967]
[1743238658432,0.5456355,83936.0,83935.0,0.1527967]
[1743238659232,0.5456355,83936.0,83935.0,0.0006]
[1743238659430,0.1191969,83935.0,83934.0,0.0304]
[1743238659623,0.1198369,83935.0,83934.0,0.031]
[1743238659821,0.1851369,83935.0,83934.0,0.1812984]
[1743238660435,0.5459369,83935.0,83934.0,0.1812984]
[1743238660831,0.1851369,83935.0,83934.0,0.1812984]
[1743238661538,0.5459369,83935.0,83934.0,0.1812984]
[1743238664525,0.6268969,83935.0,83934.0,0.1812984]
[1743238665531,0.4806369,83935.0,83934.0,0.1812984]
[1743238668228,0.1198369,83935.0,83934.0,0.19344731]
[1743238669362,0.1198369,83935.0,83934.0,0.1812984]
[1743238679049,0.1198369,83935.0,83934.0,0.0621]
[1743238679749,0.1198369,83935.0,83934.0,0.1812984]
[1743238680055,0.1834369,83935.0,83934.0,0.1812984]
[1743238683551,0.32606472,83935.0,83934.0,0.1812984]
[1743238683752,0.68686472,83935.0,83934.0,0.1812984]
[1743238690152,0.32606472,83935.0,83934.0,0.1812984]
[1743238690461,0.68686472,83935.0,83934.0,0.1812984]
[1743238691861,0.32606472,83935.0,83934.0,0.1812984]
[1743238692057,0.68686472,83935.0,83934.0,0.1812984]
[1743238694948,0.68686472,83935.0,83934.0,0.0621]
[1743238695155,0.68686472,83935.0,83934.0,0.0615]
[1743238695862,0.68686472,83935.0,83934.0,0.1806984]
[1743238696158,0.68686472,83935.0,83934.0,0.1812984]
[1743238697759,0.65556472,83935.0,83934.0,0.1812984]
[1743238697961,0.62326472,83935.0,83934.0,0.1812984]
[1743238700956,0.4806369,83935.0,83934.0,0.1812984]
[1743238702758,0.4806369,83935.0,83934.0,0.0621]
[1743238703360,0.5435369,83935.0,83934.0,0.1812984]
[1743238704063,0.5435369,83935.0,83934.0,0.0621]
[1743238708574,0.1827369,83935.0,83934.0,0.0621]
[1743238708759,0.5435369,83935.0,83934.0,0.0621]
[1743238710871,0.6576969,83935.0,83934.0,0.0621]
[1743238711256,0.6576969,83935.0,83934.0,0.1812984]
[1743238715065,0.2968969,83935.0,83934.0,0.1812984]
[1743238715269,0.6576969,83935.0,83934.0,0.1812984]
[1743238716267,0.2968969,83935.0,83934.0,0.1812984]
[1743238716571,0.6576969,83935.0,83934.0,0.1812984]
[1743238717371,0.5947969,83935.0,83934.0,0.1812984]
[1743238730975,0.2339969,83935.0,83934.0,0.1812984]
[1743238735180,0.24224099,83935.0,83934.0,0.1812984]
[1743238741482,0.2339969,83935.0,83934.0,0.1812984]
[1743238742483,0.2339569,83935.0,83934.0,0.1812984]
[1743238742889,0.00064,83935.0,83934.0,0.1812984]
[1743238743093,0.00064,83935.0,83934.0,1.9212984]
[1743238743586,0.1191969,83935.0,83934.0,1.93326479]
[1743238743792,0.1199169,83935.0,83934.0,1.93326479]
[1743238744596,0.1198369,83935.0,83934.0,1.93326479]
[1743238744896,0.00064,83935.0,83934.0,1.93326479]
[1743238745188,0.17863734,83939.0,83938.0,0.1191927]
[1743238745389,0.17931734,83939.0,83938.0,0.7306727]
[1743238745585,0.17863734,83939.0,83938.0,0.7306727]
[1743238745994,0.17863734,83939.0,83938.0,0.8220727]
[1743238746293,0.29782864,83939.0,83938.0,0.8220727]
[1743238746488,0.29846864,83939.0,83938.0,0.8220727]
[1743238746993,0.17927734,83939.0,83938.0,0.8220727]
[1743238748295,0.17863734,83939.0,83938.0,0.8220727]
[1743238748495,0.1429778,83942.0,83941.0,0.1191884]
[1743238748692,0.1436178,83942.0,83941.0,0.3697884]
[1743238749293,0.1436178,83942.0,83941.0,0.4322884]
[1743238752388,0.1429778,83942.0,83941.0,0.4322884]
[1743238754498,0.02379,83942.0,83941.0,0.4322884]
[1743238754997,0.02379,83942.0,83941.0,0.7930884]
[1743238761004,0.02379,83942.0,83941.0,0.4322884]
[1743238761204,0.02379,83942.0,83941.0,0.7930884]
[1743238762506,0.02379,83942.0,83941.0,0.4322884]
[1743238762709,0.02379,83942.0,83941.0,0.7930884]
[1743238763303,0.02379,83942.0,83941.0,0.4322884]
[1743238763503,0.02379,83942.0,83941.0,0.7930884]
[1743238763705,0.02379,83942.0,83941.0,0.4322884]
[1743238763905,0.02379,83942.0,83941.0,0.7930884]
[1743238764599,0.02379,83942.0,83941.0,0.4322884]
[1743238764997,0.02379,83942.0,83941.0,0.7930884]
[1743238765602,0.02379,83942.0,83941.0,0.4322884]
[1743238765800,0.02379,83942.0,83941.0,0.7930884]
[1743238768411,0.142977,83942.0,83941.0,0.7930884]
[1743238768609,0.142977,83942.0,83941.0,0.5430884]
[1743238768815,0.143697,83942.0,83941.0,0.5430884]
[1743238769306,0.207797,83942.0,83941.0,0.5430884]
[1743238772910,0.207797,83942.0,83941.0,0.1822884]
[1743238773107,0.207797,83942.0,83941.0,2.0430884]
[1743238773309,0.207077,83942.0,83941.0,2.0430884]
[1743238774217,0.207077,83942.0,83941.0,1.6822884]
[1743238774404,0.207717,83942.0,83941.0,0.1822884]
[1743238775006,0.207077,83942.0,83941.0,0.1822884]
[1743238776311,0.207077,83942.0,83941.0,0.1506884]
[1743238777214,0.207797,83942.0,83941.0,0.1506884]
[1743238778917,0.207077,83942.0,83941.0,0.1506884]
[1743238779115,0.207717,83942.0,83941.0,0.1506884]
[1743238780015,0.207077,83942.0,83941.0,0.1506884]
[1743238783213,0.31421003,83942.0,83941.0,0.1506884]
[1743238783415,0.31493003,83942.0,83941.0,0.1506884]
[1743238786924,0.207797,83942.0,83941.0,0.36434825]
[1743238790423,0.31493003,83942.0,83941.0,0.1828884]
[1743238793323,0.207797,83942.0,83941.0,0.39654825]
[1743238799033,0.174697,83942.0,83941.0,0.39654825]
[1743238800429,0.174697,83942.0,83941.0,0.1828884]
[1743238800733,0.205697,83942.0,83941.0,0.1828884]
[1743238802735,0.174697,83942.0,83941.0,0.1828884]
[1743238803533,0.143697,83942.0,83941.0,0.1828884]
[1743238807334,0.02451,83942.0,83941.0,0.1828884]
[1743238807539,0.13164303,83942.0,83941.0,0.1828884]
[1743238807729,0.25083003,83942.0,83941.0,0.1828884]
[1743238808041,0.25083003,83942.0,83941.0,0.0637]
[1743238808337,0.25083003,83942.0,83941.0,0.1828884]
[1743238808849,0.31433003,83942.0,83941.0,0.1828884]
[1743238810242,0.207197,83942.0,83941.0,0.1828884]
[1743238810846,0.207197,83942.0,83941.0,0.223746]
[1743238815640,0.207197,83942.0,83941.0,0.1828884]
[1743238818140,0.207197,83942.0,83941.0,0.39670238]
[1743238821649,0.321237,83942.0,83941.0,0.39670238]
[1743238822743,0.321237,83942.0,83941.0,0.1828884]
[1743238824145,0.321237,83942.0,83941.0,0.22271236]
[1743238824653,0.321237,83942.0,83941.0,0.1828884]
[1743238825757,0.4284755,83942.0,83941.0,0.1828884]
[1743238827844,0.4284755,83942.0,83941.0,0.0637]
[1743238828050,0.4284755,83942.0,83941.0,0.0240454]
[1743238828254,0.4284755,83942.0,83941.0,0.0006]
[1743238828553,0.1191913,83939.0,83938.0,0.28463283]
[1743238828854,0.12007131,83939.0,83938.0,0.19506303]
[1743238829048,0.12007131,83939.0,83938.0,0.15569723]
[1743238829653,0.21257131,83939.0,83938.0,0.15569723]
[1743238833354,0.93417131,83939.0,83938.0,0.15569723]
[1743238833750,0.99212037,83939.0,83938.0,0.00064]
[1743238833950,0.1191969,83935.0,83934.0,0.0322]
[1743238834152,0.1200369,83935.0,83934.0,0.0322]
[1743238834753,0.5431369,83935.0,83934.0,0.0322]
[1743238835648,0.5461369,83935.0,83934.0,0.0322]
[1743238836045,0.5481369,83935.0,83934.0,0.0322]
[1743238838062,0.69084226,83935.0,83934.0,0.0322]
[1743238839253,0.80488226,83935.0,83934.0,0.0322]
[1743238841460,0.6621769,83935.0,83934.0,0.0322]
[1743238844474,0.4858369,83935.0,83934.0,0.1513984]
[1743238844659,0.00584,83935.0,83934.0,0.1519984]
[1743238844964,0.00584,83935.0,83934.0,0.1834984]
[1743238846367,0.1250369,83935.0,83934.0,0.1834984]
[1743238847264,0.1241969,83935.0,83934.0,0.1834984]
[1743238848462,0.1251169,83935.0,83934.0,0.1834984]
[1743238849062,0.1241969,83935.0,83934.0,0.1834984]
[1743238849257,0.1250369,83935.0,83934.0,0.1834984]
[1743238866080,0.1567369,83935.0,83934.0,0.1834984]
[1743238866774,0.1640756,83935.0,83934.0,0.1834984]
[1743238866979,0.1955756,83935.0,83934.0,0.1834984]
[1743238867780,0.5563756,83935.0,83934.0,0.1834984]
[1743238869680,0.5563756,83935.0,83934.0,0.0643]
[1743238869873,0.5563756,83935.0,83934.0,0.0006]
[1743238870178,0.1192026,83931.0,83930.0,0.00017879]
[1743238870378,0.1200426,83931.0,83930.0,0.00017879]
[1743238870779,0.1192183,83920.0,83919.0,0.35616617]
[1743238870984,0.5940583,83920.0,83919.0,0.35676617]
[1743238871181,0.5948983,83920.0,83919.0,0.35676617]
[1743238871373,0.602237,83920.0,83919.0,0.35676617]
[1743238871775,0.664737,83920.0,83919.0,0.35676617]
[1743238872371,0.669737,83920.0,83919.0,0.35676617]
[1743238872674,1.030537,83920.0,83919.0,0.35676617]
[1743238873278,1.04226132,83920.0,83919.0,0.0006]
[1743238873481,0.1192239,83916.0,83915.0,0.0643]
[1743238873687,0.12010391,83916.0,83915.0,0.0649]
[1743238873985,0.12010391,83916.0,83915.0,0.1841254]
[1743238874374,0.19004261,83916.0,83915.0,0.1835254]
[1743238874985,0.19704261,83916.0,83915.0,0.1841254]
[1743238875176,0.91864261,83916.0,83915.0,0.1841254]
[1743238876182,0.91864261,83916.0,83915.0,0.0649]
[1743238876392,0.91864261,83916.0,83915.0,0.0643]
[1743238877589,0.91864261,83916.0,83915.0,0.06498]
[1743238877788,0.91864261,83916.0,83915.0,0.0643]
[1743238878378,0.91864261,83916.0,83915.0,0.0317]
[1743238881489,0.19704261,83916.0,83915.0,0.0317]
[1743238881686,0.91864261,83916.0,83915.0,0.0323]
[1743238881882,0.91864261,83916.0,83915.0,0.065]
[1743238882086,0.19704261,83916.0,83915.0,0.065]
[1743238882281,0.91864261,83916.0,83915.0,0.065]
[1743238883189,0.91864261,83916.0,83915.0,0.1842254]
[1743238883689,1.03272261,83916.0,83915.0,0.1842254]
[1743238886688,0.31112261,83916.0,83915.0,0.1842254]
[1743238886891,1.03272261,83916.0,83915.0,0.1842254]
[1743238892193,1.13951061,83916.0,83915.0,0.1842254]
[1743238892794,0.41791061,83916.0,83915.0,0.1842254]
[1743238892993,1.13951061,83916.0,83915.0,0.1842254]
[1743238896897,0.41791061,83916.0,83915.0,0.1842254]
[1743238897101,1.14151061,83916.0,83915.0,0.1842254]
[1743238897789,1.14251061,83916.0,83915.0,0.1842254]
[1743238897989,1.14251061,83916.0,83915.0,0.065]
[1743238898191,1.14251061,83916.0,83915.0,0.1842254]
[1743238898394,1.14251061,83916.0,83915.0,0.1836254]
[1743238898594,0.4200306,83916.0,83915.0,0.1836254]
[1743238898994,1.1416306,83916.0,83915.0,0.1836254]
[1743238899501,1.0348426,83916.0,83915.0,0.1836254]
[1743238899702,0.3132426,83916.0,83915.0,0.1836254]
[1743238900100,1.0348426,83916.0,83915.0,0.1836254]
[1743238901501,1.04979435,83916.0,83915.0,0.1836254]
[1743238903404,1.04979903,83916.0,83915.0,0.1836254]
[1743238903702,1.1086031,83916.0,83915.0,0.1842254]
[1743238903902,1.3229679,83916.0,83915.0,0.1842254]
[1743238904099,0.6013679,83916.0,83915.0,0.1842254]
[1743238904303,1.3229679,83916.0,83915.0,0.1842254]
[1743238904704,0.6013679,83916.0,83915.0,0.1842254]
[1743238905005,1.3229679,83916.0,83915.0,0.1842254]
[1743238905397,1.32296886,83916.0,83915.0,0.1842254]
[1743238905590,0.60136886,83916.0,83915.0,0.1842254]
[1743238906011,1.32296886,83916.0,83915.0,0.1842254]
[1743238906803,0.60136886,83916.0,83915.0,0.1842254]
[1743238907109,1.32296886,83916.0,83915.0,0.1842254]
[1743238907404,1.32296789,83916.0,83915.0,0.1836254]
[1743238907803,1.10860732,83916.0,83915.0,0.1836254]
[1743238915005,1.28249029,83916.0,83915.0,0.1836254]
[1743238915405,1.16841029,83916.0,83915.0,0.1836254]
[1743238915601,1.28245029,83916.0,83915.0,0.1836254]
[1743238915799,0.92165029,83916.0,83915.0,0.1836254]
[1743238916613,0.91431159,83916.0,83915.0,0.1836254]
[1743238917105,0.83675094,83916.0,83915.0,0.1836254]
[1743238917314,0.83675094,83916.0,83915.0,0.1842254]
[1743238917517,0.83675094,83916.0,83915.0,0.1836254]
[1743238918408,0.66286797,83916.0,83915.0,0.1836254]
[1743238923312,0.30206797,83916.0,83915.0,0.1836254]
[1743238923507,0.66286797,83916.0,83915.0,0.1842654]
[1743238923710,0.66286797,83916.0,83915.0,0.1836254]
[1743238926015,0.7836447,83916.0,83915.0,0.1836254]
[1743238926209,0.6696047,83916.0,83915.0,0.1836254]
[1743238926514,0.8453447,83916.0,83915.0,0.1843054]
[1743238926708,0.8453447,83916.0,83915.0,0.1836254]
[1743238928307,0.4845447,83916.0,83915.0,0.1836254]
[1743238928515,0.8453447,83916.0,83915.0,0.1842254]
[1743238928822,0.8453447,83916.0,83915.0,0.1836254]
[1743238930211,0.4845447,83916.0,83915.0,0.1836254]
[1743238930520,0.8453447,83916.0,83915.0,0.1844654]
[1743238930709,0.8453447,83916.0,83915.0,0.1836254]
[1743238933523,0.4845447,83916.0,83915.0,0.1836254]
[1743238933724,0.4845447,83916.0,83915.0,0.1842654]
[1743238933915,0.8453447,83916.0,83915.0,0.1842654]
[1743238934112,0.8453447,83916.0,83915.0,0.1836254]
[1743238935520,0.4845447,83916.0,83915.0,0.1836254]
[1743238935720,0.8453447,83916.0,83915.0,0.1843054]
[1743238936023,0.8453447,83916.0,83915.0,0.1836254]
[1743238936519,0.4845447,83916.0,83915.0,0.1836254]
[1743238936720,0.8453447,83916.0,83915.0,0.1843054]
[1743238936910,0.8453447,83916.0,83915.0,0.0644]
[1743238937116,0.1192296,83912.0,83911.0,0.00017879]
[1743238937429,0.1192296,83912.0,83886.0,0.3608]
[1743238937430,0.119241,83904.0,83903.0,0.0321]
[1743238937721,0.594921,83904.0,83903.0,0.1519424]
[1743238938133,0.60707847,83904.0,83903.0,0.1519424]
[1743238938331,0.67664785,83904.0,83903.0,0.1519424]